[Event "2nd Sharjah Masters 2018"]
[Site "Sharjah"]
[Date "2018.04.13"]
[Round "2"]
[White "Arjun Kalyan"]
[Black "Song, Yuxin"]
[Result "1/2-1/2"]
[ECO "B96"]
[WhiteElo "2397"]
[BlackElo "2075"]
[Annotator "NA"]
[PlyCount "68"]
[EventDate "2018.??.??"]
[EventType "swiss"]
[EventCountry "UAE"]
[SourceTitle "playchess.com"]
[Source "ChessBase"]
[SourceQuality "1"]
[TimeControl "5400+30"]

1. e4 {[%emt 0:00:00]} c5 {[%emt 0:00:11]} 2. Nf3 {[%emt 0:00:00]} d6 {[%emt 0:00:08]} 3. d4 {[%emt 0:00:00]} cxd4 {[%emt 0:00:09]} 4. Nxd4 {[%emt 0:00:00]} Nf6 {[%emt 0:00:10]} 5. Nc3 {[%emt 0:00:00]} a6 {[%emt 0:00:09]} 6. Bg5 {[%emt 0:00:01]} e6 {[%emt 0:00:08]} 7. f4 {[%emt 0:00:06]} h6 {[%emt 0:00:06]} 8. Bh4 {[%emt 0:00:24]} Qb6 {[%emt 0:00:09]} 9. a3 {[%emt 0:00:49]} Be7 {[%emt 0:00:09]} 10. Bf2 {[%emt 0:00:12]} Qc7 {[%emt 0:00:06]} 11. Qf3 {[%emt 0:00:50]} Nbd7 {[%emt 0:00:08]} 12. O-O-O {[%emt 0:00:52]} b5 {[%emt 0:00:08]} 13. g4 {[%emt 0:00:54]} g5 {[%emt 0:00:07]} 14. h4 {[%emt 0:02:32]} gxf4 {[%emt 0:00:10]} 15. Be2 {[%emt 0:00:12]} Ne5 {[%emt 0:00:08]} 16. Qxf4 {[%emt 0:01:16]} Nexg4 {[%emt 0:00:07]} 17. Bxg4 {[%emt 0:00:31]} e5 {[%emt 0:00:06]} 18. Nd5 {[%emt 0:00:45]} Nxd5 {[%emt 0:00:07]} 19. Qf3 {[%emt 0:00:32]} Nf4 {[%emt 0:00:05]} 20. Nf5 {[%emt 0:10:45]} h5 {[%emt 0:04:06]} 21. Bh3 {[%emt 0:01:24]} Nxh3 {[%emt 0:00:36]} 22. Rxh3 {[%emt 0:03:29]} Bxf5 {[%emt 0:00:14]} 23. Qxf5 {[%emt 0:02:54]} Qd7 {[%emt 0:00:31]} 24. Qf3 {[%emt 0:00:54]} Rg8 {[%emt 0:05:21]} 25. Rg3 {[%emt 0:10:02]} Rxg3 {[%emt 0:09:37]} 26. Qxg3 {[%emt 0:00:15]} Qg4 {[%emt 0:00:48]} 27. Qd3 {[%emt 0:03:31]} Rc8 {[%emt 0:10:54]} 28. Rg1 {[%emt 0:05:05]} Qf4+ {[%emt 0:06:06]} 29. Be3 {[%emt 0:00:44]} Qf3 {[%emt 0:08:00]} 30. Kb1 {[%emt 0:25:33]} Rc4 {[%emt 0:02:01]} 31. b3 {[%emt 0:04:27]} Rxe4 {[%emt 0:08:16]} 32. Rg8+ {[%emt 0:00:46]} Kd7 {[%emt 0:00:01]} 33. Qc3 {[%emt 0:00:29]} Qd1+ {[%emt 0:00:02]} 34. Ka2 {[%emt 0:10:05]} Bd8 {[%emt 0:03:09]} 1/2-1/2

[Event "2nd Sharjah Masters 2018"]
[Site "Sharjah"]
[Date "2018.04.13"]
[Round "2"]
[White "Nyazi, Nehad"]
[Black "Mohammed Ahmed said Al Amri"]
[Result "1-0"]
[ECO "D05"]
[WhiteElo "2213"]
[BlackElo "1822"]
[Annotator "NA"]
[PlyCount "61"]
[EventDate "2018.??.??"]
[EventType "swiss"]
[EventCountry "UAE"]
[SourceTitle "playchess.com"]
[Source "ChessBase"]
[SourceQuality "1"]
[TimeControl "5400+30"]

1. d4 {[%emt 0:00:00]} Nf6 {[%emt 0:00:15]} 2. Nf3 {[%emt 0:00:00]} e6 {[%emt 0:00:17]} 3. e3 {[%emt 0:00:08]} d5 {[%emt 0:00:14]} 4. Bd3 {[%emt 0:00:06]} Be7 {[%emt 0:00:34]} 5. O-O {[%emt 0:00:10]} O-O {[%emt 0:00:18]} 6. Nbd2 {[%emt 0:00:06]} Nbd7 {[%emt 0:00:07]} 7. Qe2 {[%emt 0:01:31]} c5 {[%emt 0:01:10]} 8. c3 {[%emt 0:00:08]} b6 {[%emt 0:00:44]} 9. e4 {[%emt 0:00:08]} dxe4 {[%emt 0:00:52]} 10. Nxe4 {[%emt 0:00:08]} Bb7 {[%emt 0:00:29]} 11. Rd1 {[%emt 0:07:25]} Qc7 {[%emt 0:04:12]} 12. Bg5 {[%emt 0:05:07]} Rfe8 {[%emt 0:04:27]} 13. dxc5 {[%emt 0:16:49]} Nxc5 {[%emt 0:03:02]} 14. Nxc5 {[%emt 0:02:53]} Bxc5 {[%emt 0:06:52]} 15. Ne5 {[%emt 0:19:16]} Be7 {[%emt 0:08:26]} 16. Rd2 {[%emt 0:17:04]} Rad8 {[%emt 0:00:36]} 17. Rad1 {[%emt 0:00:01]} Rd5 {[%emt 0:06:54]} 18. f4 {[%emt 0:03:07]} Red8 {[%emt 0:03:18]} 19. c4 {[%emt 0:05:35]} Rd4 {[%emt 0:01:00]} 20. Bxf6 {[%emt 0:01:48]} Bxf6 {[%emt 0:25:23]} 21. Bxh7+ {[%emt 0:00:19]} Kxh7 {[%emt 0:00:54]} 22. Rxd4 {[%emt 0:00:06]} Rxd4 {[%emt 0:02:13]} 23. Rxd4 {[%emt 0:00:09]} Bc8 {[%emt 0:03:26]} 24. b4 {[%emt 0:02:42]} g6 {[%emt 0:00:23]} 25. Qe4 {[%emt 0:04:05]} Bb7 {[%emt 0:01:23]} 26. Rd7 {[%emt 0:02:49]} Bxe5 {[%emt 0:09:50]} 27. Rxc7 {[%emt 0:00:22]} Bxe4 {[%emt 0:00:13]} 28. fxe5 {[%emt 0:00:09]} Kg7 {[%emt 0:00:36]} 29. Rxa7 {[%emt 0:00:08]} Bd3 {[%emt 0:00:10]} 30. c5 {[%emt 0:00:07]} bxc5 {[%emt 0:00:05]} 31. bxc5 {[%emt 0:00:13]} 1-0

[Event "2nd Sharjah Masters 2018"]
[Site "Sharjah"]
[Date "2018.04.13"]
[Round "2"]
[White "Ma, Lin"]
[Black "Dixit, Nikhil"]
[Result "1/2-1/2"]
[ECO "E63"]
[WhiteElo "2156"]
[BlackElo "2285"]
[Annotator "NA"]
[PlyCount "49"]
[EventDate "2018.??.??"]
[EventType "swiss"]
[EventCountry "UAE"]
[SourceTitle "playchess.com"]
[Source "ChessBase"]
[SourceQuality "1"]
[TimeControl "5400+30"]

1. Nf3 {[%emt 0:00:00]} Nf6 {[%emt 0:00:38]} 2. g3 {[%emt 0:00:00]} g6 {[%emt 0:00:11]} 3. Bg2 {[%emt 0:00:00]} Bg7 {[%emt 0:00:04]} 4. O-O {[%emt 0:00:06]} O-O {[%emt 0:00:03]} 5. c4 {[%emt 0:00:04]} d6 {[%emt 0:00:13]} 6. d4 {[%emt 0:00:05]} Nc6 {[%emt 0:00:32]} 7. Nc3 {[%emt 0:00:37]} a6 {[%emt 0:01:12]} 8. h3 {[%emt 0:01:01]} Bd7 {[%emt 0:09:55]} 9. e4 {[%emt 0:04:29]} e5 {[%emt 0:09:41]} 10. Be3 {[%emt 0:08:41]} Qc8 {[%emt 0:11:33]} 11. Kh2 {[%emt 0:10:43]} Re8 {[%emt 0:12:01]} 12. dxe5 {[%emt 0:00:50]} dxe5 {[%emt 0:03:11]} 13. Qc2 {[%emt 0:01:54]} Na5 {[%emt 0:14:31]} 14. c5 {[%emt 0:13:41]} b6 {[%emt 0:10:01]} 15. Nd2 {[%emt 0:08:04]} bxc5 {[%emt 0:04:26]} 16. Bxc5 {[%emt 0:03:08]} Nc6 {[%emt 0:02:36]} 17. Nb3 {[%emt 0:14:17]} a5 {[%emt 0:02:06]} 18. Be3 {[%emt 0:05:17]} a4 {[%emt 0:05:09]} 19. Nc5 {[%emt 0:00:09]} Nd4 {[%emt 0:00:26]} 20. Bxd4 {[%emt 0:20:38]} exd4 {[%emt 0:00:22]} 21. N3xa4 {[%emt 0:00:06]} Bb5 {[%emt 0:06:41]} 22. Rfe1 {[%emt 0:04:41]} Nd7 {[%emt 0:01:49]} 23. Bf1 {[%emt 0:02:22]} Bc6 {[%emt 0:02:29]} 24. Rad1 {[%emt 0:00:22]} Nxc5 {[%emt 0:01:11]} 25. Nxc5 {[%emt 0:00:26]} 1/2-1/2

[Event "2nd Sharjah Masters 2018"]
[Site "Sharjah"]
[Date "2018.04.13"]
[Round "2"]
[White "Bommini Mounika Akshaya"]
[Black "Aditya Mittal"]
[Result "0-1"]
[ECO "D00"]
[WhiteElo "1831"]
[BlackElo "2212"]
[Annotator "NA"]
[PlyCount "74"]
[EventDate "2018.??.??"]
[EventType "swiss"]
[EventCountry "UAE"]
[SourceTitle "playchess.com"]
[Source "ChessBase"]
[SourceQuality "1"]
[TimeControl "5400+30"]

1. d4 {[%emt 0:00:00]} d5 {[%emt 0:00:15]} 2. Bf4 {[%emt 0:00:00]} Nf6 {[%emt 0:00:05]} 3. e3 {[%emt 0:00:05]} c5 {[%emt 0:00:08]} 4. c3 {[%emt 0:00:06]} Nc6 {[%emt 0:00:07]} 5. Nd2 {[%emt 0:00:08]} e6 {[%emt 0:00:08]} 6. Ngf3 {[%emt 0:00:03]} cxd4 {[%emt 0:00:07]} 7. exd4 {[%emt 0:00:14]} Nh5 {[%emt 0:00:20]} 8. Be3 {[%emt 0:02:15]} Bd6 {[%emt 0:00:11]} 9. Ne5 {[%emt 0:07:18]} g6 {[%emt 0:13:04]} 10. Ndf3 {[%emt 0:07:41]} f6 {[%emt 0:03:27]} 11. Nxc6 {[%emt 0:23:45]} bxc6 {[%emt 0:00:02]} 12. Bh6 {[%emt 0:01:48]} Qc7 {[%emt 0:05:55]} 13. g3 {[%emt 0:05:21]} Ng7 {[%emt 0:12:28]} 14. Be2 {[%emt 0:07:43]} Nf5 {[%emt 0:08:43]} 15. Bd2 {[%emt 0:03:05]} e5 {[%emt 0:01:15]} 16. O-O {[%emt 0:05:29]} e4 {[%emt 0:02:23]} 17. Ne1 {[%emt 0:00:13]} h5 {[%emt 0:02:25]} 18. h4 {[%emt 0:13:36]} Bxg3 {[%emt 0:12:07]} 19. fxg3 {[%emt 0:02:54]} Qxg3+ {[%emt 0:00:14]} 20. Ng2 {[%emt 0:02:35]} Nxh4 {[%emt 0:00:22]} 21. Rf2 {[%emt 0:01:08]} e3 {[%emt 0:00:31]} 22. Bxe3 {[%emt 0:02:46]} Nxg2 {[%emt 0:00:11]} 23. Rxg2 {[%emt 0:02:15]} Qxe3+ {[%emt 0:00:02]} 24. Kh1 {[%emt 0:00:38]} Bh3 {[%emt 0:07:45]} 25. Rh2 {[%emt 0:01:57]} Bf5 {[%emt 0:01:06]} 26. Bf3 {[%emt 0:02:09]} Kf7 {[%emt 0:00:32]} 27. Bg2 {[%emt 0:01:43]} h4 {[%emt 0:06:31]} 28. Qf1 {[%emt 0:03:32]} h3 {[%emt 0:05:29]} 29. Bf3 {[%emt 0:00:10]} Be4 {[%emt 0:08:57]} 30. Bxe4 {[%emt 0:00:54]} Qxe4+ {[%emt 0:00:08]} 31. Kg1 {[%emt 0:00:11]} Rh4 {[%emt 0:01:03]} 32. Rf2 {[%emt 0:01:51]} Rg4+ {[%emt 0:05:17]} 33. Kh2 {[%emt 0:00:06]} Rg2+ {[%emt 0:00:06]} 34. Rxg2 {[%emt 0:00:12]} hxg2 {[%emt 0:00:01]} 35. Qxg2 {[%emt 0:00:14]} Rh8+ {[%emt 0:00:05]} 36. Kg1 {[%emt 0:00:25]} Qe3+ {[%emt 0:00:05]} 37. Kf1 {[%emt 0:00:11]} Rh4 {[%emt 0:01:09]} 0-1